fUSD/lending_fUSD_20240527
["ID","MTS","AMOUNT","RATE_DAILY","PERIOD"]
[328020041,1716773547278,-690.87,0.00031506,4]
[328020042,1716773547288,-385.17,0.00031506,4]
[328020043,1716773547298,-1641.89,0.00031506,4]
[328020044,1716773547307,-500.0,0.00031506,4]
[328020045,1716773547318,-500.0,0.00031506,4]
[328020046,1716773547327,-500.0,0.00031506,4]
[328020047,1716773547337,-500.0,0.00031506,4]
[328020048,1716773547347,-421.84,0.00031506,4]
[328020049,1716773547358,-500.0,0.00031506,4]
[328020050,1716773547367,-500.0,0.00031506,4]
[328020051,1716773547377,-500.0,0.00031506,4]
[328020052,1716773547387,-935.12,0.00031506,4]
[328020053,1716773547396,-500.0,0.00031506,4]
[328020054,1716773547407,-677.22,0.00031506,4]
[328020055,1716773547419,-1013.07,0.00031506,4]
[328020056,1716773547430,-500.0,0.00031506,4]
[328020057,1716773547440,-552.18,0.00031506,4]
[328020058,1716773547451,-500.0,0.00031506,4]
[328020059,1716773547461,-861.85,0.00031506,4]
[328020060,1716773547471,-858.84,0.00031506,4]
[328020061,1716773547481,-500.0,0.00031506,4]
[328020062,1716773547491,-500.0,0.00031506,4]
[328020063,1716773547502,-500.0,0.00031506,4]
[328020064,1716773547511,-811.31,0.00031506,4]
[328020065,1716773547521,-549.95,0.00031506,4]
[328020066,1716773547530,-278.04,0.00031506,4]
[328020067,1716773547540,-298.13,0.00031506,4]
[328020068,1716773547550,-620.92,0.00031506,4]
[328020069,1716773547561,-742.45,0.00031506,4]
[328020070,1716773547571,-500.0,0.00031506,4]
[328020071,1716773547581,-500.0,0.00031506,4]
[328020072,1716773547592,-611.76,0.00031506,4]
[328020073,1716773547602,-500.0,0.00031506,4]
[328020074,1716773547612,-366.51975876,0.00031506,4]
[328020075,1716773547622,-1162.24,0.00031506,4]
[328020076,1716773547632,-463.14,0.00031506,4]
[328020077,1716773547642,-803.05,0.00031506,4]
[328020078,1716773547651,-722.78,0.00031506,4]
[328020079,1716773547662,-500.0,0.00031506,4]
[328020080,1716773547674,-958.44,0.00031506,4]
[328020081,1716773547683,-500.0,0.00031506,4]
[328020082,1716773547693,-665.19,0.00031506,4]
[328020083,1716773547702,-500.0,0.00031506,4]
[328020084,1716773547713,-742.73,0.00031506,4]
[328020085,1716773547723,-1148.79,0.00031506,4]
[328020086,1716773547733,-684.31,0.00031506,4]
[328020087,1716773547743,-868.94,0.00031506,4]
[328020088,1716773547753,-500.0,0.00031506,4]
[328020089,1716773547762,-500.0,0.00031506,4]
[328020090,1716773547772,-555.76,0.00031506,4]
[328020091,1716773547782,-500.0,0.00031506,4]
[328020092,1716773547792,-1021.87,0.00031506,4]
[328020093,1716773547802,-500.0,0.00031506,4]
[328020094,1716773547812,-771.51,0.00031506,4]
[328020095,1716773547823,-500.0,0.00031506,4]
[328020096,1716773547834,-1127.03,0.00031506,4]
[328020097,1716773547849,-500.0,0.00031506,4]
[328020098,1716773547859,-568.94,0.00031506,4]
[328020099,1716773547869,-792.94,0.00031506,4]
[328020100,1716773547879,-1040.28,0.00031506,4]
[328020101,1716773547891,-436.0,0.00031506,4]
[328020102,1716773547903,-565.33,0.00031506,4]
[328020103,1716773547917,-621.99,0.00031506,4]
[328020104,1716773547934,-248.11,0.00031506,4]
[328020105,1716773547944,-590.75,0.00031506,4]
[328020106,1716773547954,-641.85,0.00031506,4]
[328020107,1716773547964,-849.19,0.00031506,4]
[328020108,1716773547974,-889.12,0.00031506,4]
[328020109,1716773547984,-530.16,0.00031506,4]
[328020110,1716773547994,-536.89,0.00031506,4]
[328020111,1716773548005,-1259.29,0.00031506,4]
[328020112,1716773548016,-500.0,0.00031506,4]
[328020113,1716773548026,-500.0,0.00031506,4]
[328020114,1716773548035,-568.42,0.00031506,4]
[328020115,1716773548045,-776.42,0.00031506,4]
[328020116,1716773548055,-1677.95,0.00031506,4]
[328020117,1716773548065,-646.9,0.00031506,4]
[328020118,1716773548075,-660.3,0.00031506,4]
[328020119,1716773548084,-537.3,0.00031506,4]
[328020120,1716773548094,-500.0,0.00031506,4]
[328020121,1716773548104,-2614.52,0.00031506,4]
[328020122,1716773548115,-579.16,0.00031506,4]
[328020123,1716773548126,-1322.14,0.00031506,4]
[328020124,1716773548136,-969.5,0.00031506,4]
[328020125,1716773548146,-500.0,0.00031506,4]
[328020126,1716773548157,-609.69,0.00031506,4]
[328020127,1716773548167,-500.0,0.00031506,4]
[328020128,1716773548177,-506.32,0.00031506,4]
[328020129,1716773548187,-1140.34,0.00031506,4]
[328020130,1716773548197,-1339.71,0.00031506,4]
[328020131,1716773548207,-859.67,0.00031506,4]
[328020132,1716773548217,-673.21,0.00031506,4]
[328020133,1716773548227,-7686.08,0.00031506,4]
[328020134,1716773548237,-1172.21,0.00031506,4]
[328020135,1716773548247,-1287.8,0.00031506,4]
[328020136,1716773548257,-581.22,0.00031506,4]
[328020137,1716773548267,-900.49,0.00031506,4]
[328020138,1716773548278,-1037.45,0.00031506,4]
[328020139,1716773548288,-507.12,0.00031506,4]
[328020140,1716773548299,-735.66,0.00031506,4]
[328020141,1716773548309,-2771.58,0.00031506,4]
[328020142,1716773548320,-500.0,0.00031506,4]
[328020143,1716773548331,-3172.21,0.00031506,4]
[328020144,1716773548340,-1674.57,0.00031506,4]
[328020145,1716773548351,-500.0,0.00031506,4]
[328020146,1716773548361,-2746.18,0.00031506,4]
[328020147,1716773548371,-500.0,0.00031506,4]
[328020148,1716773548381,-527.2,0.00031506,4]
[328020149,1716773548392,-6205.95,0.00031506,4]
[328020150,1716773548402,-892.56,0.00031506,4]
[328020151,1716773548413,-706.36,0.00031506,4]
[328020152,1716773548423,-1206.85,0.00031506,4]
[328020153,1716773548434,-2601.64,0.00031506,4]
[328020154,1716773548443,-627.83,0.00031506,4]
[328020155,1716773548454,-500.0,0.00031506,4]
[328020156,1716773548464,-500.0,0.00031506,4]
[328020157,1716773548474,-500.0,0.00031506,4]
[328020158,1716773548484,-906.32,0.00031506,4]
[328020159,1716773548494,-1301.17,0.00031506,4]
[328020160,1716773548504,-500.0,0.00031506,4]
[328020161,1716773548514,-1348.74,0.00031506,4]
[328020162,1716773548525,-1356.31,0.00031506,4]
[328020163,1716773548535,-690.34,0.00031506,4]
[328020164,1716773548545,-500.0,0.00031506,4]
[328020165,1716773548555,-303.32,0.00031506,4]
[328020166,1716773548565,-2143.83,0.00031506,4]
[328020167,1716773548574,-2383.33,0.00031506,4]
[328020168,1716773548584,-500.0,0.00031506,4]
[328020169,1716773548594,-500.0,0.00031506,4]
[328020170,1716773548604,-500.0,0.00031506,4]
[328020171,1716773548614,-500.0,0.00031506,4]
[328020172,1716773548624,-1576.4,0.00031506,4]
[328020173,1716773548634,-786.1,0.00031506,4]
[328020174,1716773548646,-1713.46,0.00031506,4]
[328020175,1716773548656,-1532.05,0.00031506,4]
[328020176,1716773548667,-3324.33,0.00031506,4]
[328020177,1716773548676,-1197.25,0.00031506,4]
[328020178,1716773548686,-908.76,0.00031506,4]
[328020179,1716773548696,-606.23,0.00031506,4]
[328020180,1716773548706,-881.49,0.00031506,4]
[328020181,1716773548716,-500.0,0.00031506,4]
[328020182,1716773548726,-1016.57,0.00031506,4]
[328020183,1716773548736,-760.48,0.00031506,4]
[328020184,1716773548746,-10252.41,0.00031506,4]
[328020185,1716773548756,-601.05,0.00031506,4]
[328020186,1716773548766,-984.73,0.00031506,4]
[328020187,1716773548776,-313.77,0.00031506,4]
[328020188,1716773548786,-879.73,0.00031506,4]
[328020189,1716773548796,-1296.31,0.00031506,4]
[328020190,1716773548806,-913.5,0.00031506,4]
[328020191,1716773548816,-627.73,0.00031506,4]
[328020192,1716773548826,-12959.85,0.00031506,4]
[328020193,1716773548837,-1152.84,0.00031506,4]
[328020194,1716773548850,-1257.91,0.00031506,4]
[328020195,1716773548861,-1837.75,0.00031506,4]
[328020196,1716773548871,-500.0,0.00031506,4]
[328020197,1716773548880,-2024.08,0.00031506,4]
[328020198,1716773548890,-602.61,0.00031506,4]
[328020199,1716773548900,-500.0,0.00031506,4]
[328020200,1716773548910,-1234.35,0.00031506,4]
[328020201,1716773548922,-500.0,0.00031506,4]
[328020202,1716773548939,-500.0,0.00031506,4]
[328020203,1716773548949,-1687.26,0.00031506,4]
[328020204,1716773548959,-869.6,0.00031506,4]
[328020205,1716773548970,-572.54,0.00031506,4]
[328020206,1716773548980,-500.0,0.00031506,4]
[328020207,1716773548993,-1160.09,0.00031506,4]
[328020208,1716773549003,-915.48,0.00031506,4]
[328020209,1716773549013,-894.59,0.00031506,4]
[328020210,1716773549024,-1359.95,0.00031506,4]
[328020211,1716773549034,-777.55,0.00031506,4]
[328020212,1716773549044,-500.0,0.00031506,4]
[328020213,1716773549054,-955.96,0.00031506,4]
[328020214,1716773549064,-590.73,0.00031506,4]
[328020215,1716773549074,-824.44,0.00031506,4]
[328020216,1716773549084,-1899.17,0.00031506,4]
[328020217,1716773549095,-500.0,0.00031506,4]
[328020218,1716773549104,-709.3,0.00031506,4]
[328020219,1716773549114,-500.0,0.00031506,4]
[328020220,1716773549124,-1522.47,0.00031506,4]
[328020221,1716773549134,-726.34,0.00031506,4]
[328020222,1716773549144,-1111.07,0.00031506,4]
[328020223,1716773549155,-6862.17,0.00031506,4]
[328020224,1716773549166,-1636.35,0.00031506,4]
[328020225,1716773549175,-500.0,0.00031506,4]
[328020226,1716773549185,-977.11,0.00031506,4]
[328020227,1716773549195,-879.18,0.00031506,4]
[328020228,1716773549205,-1153.21,0.00031506,4]
[328020229,1716773549216,-688.44,0.00031506,4]
[328020230,1716773549226,-706.27,0.00031506,4]
[328020231,1716773549236,-276.3,0.00031506,4]
[328020232,1716773549246,-500.0,0.00031506,4]
[328020233,1716773549256,-1139.88,0.00031506,4]
[328020234,1716773549267,-500.0,0.00031506,4]
[328020235,1716773549500,-1445.7,0.00031506,4]
[328020236,1716773549514,-818.95,0.00031506,4]
[328020237,1716773549524,-2130.92,0.00031506,4]
[328020238,1716773549533,-3583.63,0.00031506,4]
[328020239,1716773549543,-5398.85,0.00031506,4]
[328020240,1716773549552,-874.92,0.00031506,4]
[328020241,1716773549561,-1049.53,0.00031506,4]
[328020242,1716773549571,-6155.22,0.00031506,4]
[328020243,1716773549581,-2307.64,0.00031506,4]
[328020244,1716773549590,-500.0,0.00031506,4]
[328020245,1716773549600,-500.0,0.00031506,4]
[328020246,1716773549609,-647.85,0.00031506,4]
[328020247,1716773549619,-1590.14,0.00031506,4]
[328020248,1716773549628,-1987.82,0.00031506,4]
[328020249,1716773549638,-4196.44,0.00031506,4]
[328020250,1716773549647,-500.0,0.00031506,4]
[328020251,1716773549657,-1672.39,0.00031506,4]
[328020252,1716773549666,-1529.19,0.00031506,4]
[328020253,1716773549675,-500.0,0.00031506,4]
[328020254,1716773549685,-1357.3,0.00031506,4]
[328020255,1716773549695,-3193.96,0.00031506,4]
[328020256,1716773549704,-500.0,0.00031506,4]
[328020257,1716773549714,-2967.77,0.00031506,4]
[328020258,1716773549723,-1331.17,0.00031506,4]
[328020259,1716773549733,-953.21,0.00031506,4]
[328020260,1716773549742,-683.81,0.00031506,4]
[328020261,1716773549752,-621.07,0.00031506,4]
[328020262,1716773549761,-3518.53,0.00031506,4]
[328020263,1716773549771,-707.14,0.00031506,4]
[328020264,1716773549780,-500.0,0.00031506,4]
[328020265,1716773549789,-1400.41,0.00031506,4]
[328020266,1716773549799,-1255.06,0.00031506,4]
[328020267,1716773549809,-500.0,0.00031506,4]
[328020268,1716773549818,-577.18,0.00031506,4]
[328020269,1716773549827,-2187.31,0.00031506,4]
[328020270,1716773549837,-1098.66,0.00031506,4]
[328020271,1716773549847,-919.68,0.00031506,4]
[328020272,1716773549858,-2106.55,0.00031506,4]
[328020273,1716773549868,-2336.3,0.00031506,4]
[328020274,1716773549878,-1415.86,0.00031506,4]
[328020275,1716773549889,-1637.74,0.00031506,4]
[328020276,1716773549898,-609.84,0.00031506,4]
[328020277,1716773549908,-500.0,0.00031506,4]
[328020278,1716773549918,-912.06,0.00031506,4]
[328020279,1716773549929,-500.0,0.00031506,4]
[328020280,1716773549939,-1275.52,0.00031506,4]
[328020281,1716773549948,-1558.22,0.00031506,4]
[328020282,1716773549958,-3246.02,0.00031506,4]
[328020283,1716773549967,-1094.9,0.00031506,4]
[328020284,1716773549977,-537.01,0.00031506,4]
[328020285,1716773549986,-999.12,0.00031506,4]
[328020286,1716773549995,-593.71,0.00031506,4]
[328020287,1716773550005,-500.0,0.00031506,4]
[328020288,1716773550014,-1146.79,0.00031506,4]
[328020289,1716773550024,-510.96,0.00031506,4]
[328020290,1716773550034,-1156.39,0.00031506,4]
[328020291,1716773550043,-500.0,0.00031506,4]
[328020292,1716773550053,-1494.94,0.00031506,4]
[328020293,1716773550063,-3014.19,0.00031506,4]
[328020294,1716773550072,-766.93,0.00031506,4]
[328020295,1716773550082,-500.0,0.00031506,4]
[328020296,1716773550091,-1271.17,0.00031506,4]
[328020297,1716773550102,-500.0,0.00031506,4]
[328020298,1716773550112,-500.0,0.00031506,4]
[328020299,1716773550121,-7504.54,0.00031506,4]
[328020300,1716773550131,-500.0,0.00031506,4]
[328020301,1716773550141,-500.0,0.00031506,4]
[328020302,1716773550151,-154.37,0.00031546,2]
[328020303,1716773550161,-252.26594105,0.00031602,2]
[328020304,1716773550170,-8032.02153378,0.0003176,2]
[328020305,1716773550179,-480.90568163,0.0003176,2]
[328020306,1716773550189,-500.0,0.0003178,4]
[328020307,1716773550199,-695.36,0.0003178,4]
[328020308,1716773550208,-500.0,0.0003178,4]
[328020309,1716773550217,-736.3,0.0003178,4]
[328020310,1716773550227,-611.36,0.0003178,4]
[328020311,1716773550236,-763.53,0.0003178,4]
[328020312,1716773550246,-500.0,0.0003178,4]
[328020313,1716773550255,-500.0,0.0003178,4]
[328020314,1716773550264,-500.0,0.0003178,4]
[328020315,1716773550273,-500.0,0.0003178,4]
[328020316,1716773550283,-500.0,0.0003178,4]
[328020317,1716773550292,-500.0,0.0003178,4]
[328020318,1716773550301,-509.3,0.0003178,4]
[328020319,1716773550310,-500.0,0.0003178,4]
[328020320,1716773550320,-618.09,0.0003178,4]
[328020321,1716773550329,-500.0,0.0003178,4]
[328020322,1716773550338,-500.0,0.0003178,4]
[328020323,1716773550348,-500.0,0.0003178,4]
[328020324,1716773550358,-502.14,0.0003178,4]
[328020325,1716773550367,-500.0,0.0003178,4]
[328020326,1716773550377,-500.0,0.0003178,4]
[328020327,1716773550386,-532.9,0.0003178,4]
[328020328,1716773550395,-525.03,0.0003178,4]
[328020329,1716773550405,-539.9,0.0003178,4]
[328020330,1716773550414,-657.09,0.0003178,4]
[328020331,1716773550425,-422.09,0.0003178,4]
[328020332,1716773550434,-500.0,0.0003178,4]
[328020333,1716773550443,-500.0,0.0003178,4]
[328020334,1716773550453,-750.33,0.0003178,4]
[328020335,1716773550462,-500.0,0.0003178,4]
[328020336,1716773550471,-743.01,0.0003178,4]
[328020337,1716773550481,-524.1,0.0003178,4]
[328020338,1716773550490,-500.0,0.0003178,4]
[328020339,1716773550499,-500.0,0.0003178,4]
[328020340,1716773550508,-613.12,0.0003178,4]
[328020341,1716773550517,-500.0,0.0003178,4]
[328020342,1716773550527,-674.79,0.0003178,4]
[328020343,1716773550536,-500.0,0.0003178,4]
[328020344,1716773550546,-637.71,0.0003178,4]
[328020345,1716773550555,-500.0,0.0003178,4]
[328020346,1716773550564,-500.0,0.0003178,4]
[328020347,1716773550574,-610.35,0.0003178,4]
[328020348,1716773550584,-565.63,0.0003178,4]
[328020349,1716773550593,-500.0,0.0003178,4]
[328020350,1716773550602,-1112.41,0.0003178,4]
[328020351,1716773550611,-500.0,0.0003178,4]
[328020352,1716773550620,-518.47,0.0003178,4]
[328020353,1716773550630,-820.24,0.0003178,4]
[328020354,1716773550639,-500.0,0.0003178,4]
[328020355,1716773550648,-500.0,0.0003178,4]
[328020356,1716773550657,-813.92,0.0003178,4]
[328020357,1716773550668,-500.0,0.0003178,4]
[328020358,1716773550678,-500.0,0.0003178,4]
[328020359,1716773550687,-1037.2,0.0003178,4]
[328020360,1716773550697,-1002.02,0.0003178,4]
[328020361,1716773550707,-1135.33,0.0003178,4]
[328020362,1716773550716,-696.41,0.0003178,4]
[328020363,1716773550726,-526.63,0.0003178,4]
[328020364,1716773550736,-566.26,0.0003178,4]
[328020365,1716773550745,-659.81,0.0003178,4]
[328020366,1716773550755,-724.95,0.0003178,4]
[328020367,1716773550764,-715.24,0.0003178,4]
[328020368,1716773550773,-500.0,0.0003178,4]
[328020369,1716773550783,-635.71,0.0003178,4]
[328020370,1716773550792,-537.11,0.0003178,4]
[328020371,1716773550802,-1115.92,0.0003178,4]
[328020372,1716773550811,-514.34,0.0003178,4]
[328020373,1716773550821,-500.0,0.0003178,4]
[328020374,1716773550831,-500.0,0.0003178,4]
[328020375,1716773550842,-500.0,0.0003178,4]
[328020376,1716773550856,-500.0,0.0003178,4]
[328020377,1716773550866,-500.0,0.0003178,4]
[328020378,1716773550876,-1161.05,0.0003178,4]
[328020379,1716773550887,-500.0,0.0003178,4]
[328020380,1716773550896,-657.79,0.0003178,4]
[328020381,1716773550906,-500.0,0.0003178,4]
[328020382,1716773550918,-513.43,0.0003178,4]
[328020383,1716773550928,-563.52,0.0003178,4]
[328020384,1716773550938,-553.3,0.0003178,4]
[328020385,1716773550948,-500.0,0.0003178,4]
[328020386,1716773550957,-590.37,0.0003178,4]
[328020387,1716773550966,-500.0,0.0003178,4]
[328020388,1716773550976,-500.0,0.0003178,4]
[328020389,1716773550987,-500.0,0.0003178,4]
[328020390,1716773550996,-677.81,0.0003178,4]
[328020391,1716773551006,-640.38,0.0003178,4]
[328020392,1716773551017,-500.0,0.0003178,4]
[328020393,1716773551027,-689.4,0.0003178,4]
[328020394,1716773551036,-500.0,0.0003178,4]
[328020395,1716773551046,-566.57,0.0003178,4]
[328020396,1716773551056,-1225.47,0.0003178,4]
[328020397,1716773551065,-652.09,0.0003178,4]
[328020398,1716773551075,-921.84,0.0003178,4]
[328020399,1716773551084,-796.9,0.0003178,4]
[328020400,1716773551093,-531.92,0.0003178,4]
[328020401,1716773551103,-500.0,0.0003178,4]
[328020402,1716773551112,-911.01,0.0003178,4]
[328020403,1716773551121,-641.37,0.0003178,4]
[328020404,1716773551131,-1333.61,0.0003178,4]
[328020405,1716773551140,-500.0,0.0003178,4]
[328020406,1716773551149,-484.91,0.0003178,4]
[328020407,1716773551159,-500.0,0.0003178,4]
[328020408,1716773551169,-514.48,0.0003178,4]
[328020409,1716773551179,-1275.39,0.0003178,4]
[328020410,1716773551189,-1100.98,0.0003178,4]
[328020411,1716773551199,-500.0,0.0003178,4]
[328020412,1716773551208,-690.87,0.0003178,4]
[328020413,1716773551219,-1641.89,0.0003178,4]
[328020414,1716773551228,-500.0,0.0003178,4]
[328020415,1716773551237,-500.0,0.0003178,4]
[328020416,1716773551247,-500.0,0.0003178,4]
[328020417,1716773551257,-500.0,0.0003178,4]
[328020418,1716773551267,-500.0,0.0003178,4]
[328020419,1716773551276,-500.0,0.0003178,4]
[328020420,1716773551285,-500.0,0.0003178,4]
[328020421,1716773551294,-935.12,0.0003178,4]
[328020422,1716773551304,-500.0,0.0003178,4]
[328020423,1716773551313,-677.22,0.0003178,4]
[328020424,1716773551322,-1013.07,0.0003178,4]
[328020425,1716773551331,-500.0,0.0003178,4]
[328020426,1716773551340,-552.18,0.0003178,4]
[328020427,1716773551350,-500.0,0.0003178,4]
[328020428,1716773551359,-861.85,0.0003178,4]
[328020429,1716773551369,-858.84,0.0003178,4]
[328020430,1716773551378,-500.0,0.0003178,4]
[328020431,1716773551387,-222.64,0.0003178,4]
[328020432,1716773551396,-500.0,0.0003178,4]
[328020433,1716773551406,-811.31,0.0003178,4]
[328020434,1716773551415,-549.95,0.0003178,4]
[328020435,1716773551425,-620.92,0.0003178,4]
[328020436,1716773551435,-742.45,0.0003178,4]
[328020437,1716773551444,-500.0,0.0003178,4]
[328020438,1716773551454,-500.0,0.0003178,4]
[328020439,1716773551464,-611.76,0.0003178,4]
[328020440,1716773551473,-500.0,0.0003178,4]
[328020441,1716773551485,-1162.24,0.0003178,4]
[328020442,1716773551494,-803.05,0.0003178,4]
[328020443,1716773551503,-722.78,0.0003178,4]
[328020444,1716773551513,-500.0,0.0003178,4]
[328020445,1716773551523,-958.44,0.0003178,4]
[328020446,1716773551532,-665.19,0.0003178,4]
[328020447,1716773551542,-500.0,0.0003178,4]
[328020448,1716773551551,-742.73,0.0003178,4]
[328020449,1716773551560,-1148.79,0.0003178,4]
[328020450,1716773551569,-684.31,0.0003178,4]
[328020451,1716773551578,-868.94,0.0003178,4]
[328020452,1716773551587,-500.0,0.0003178,4]
[328020453,1716773551596,-500.0,0.0003178,4]
[328020454,1716773551605,-555.76,0.0003178,4]
[328020455,1716773551614,-272.96,0.0003178,4]
[328020456,1716773551623,-1021.87,0.0003178,4]
[328020457,1716773551633,-500.0,0.0003178,4]
[328020458,1716773551642,-771.51,0.0003178,4]
[328020459,1716773551651,-500.0,0.0003178,4]
[328020460,1716773551660,-1127.03,0.0003178,4]
[328020461,1716773551670,-500.0,0.0003178,4]
[328020462,1716773551679,-568.94,0.0003178,4]
[328020463,1716773551688,-792.94,0.0003178,4]
[328020464,1716773551698,-1040.28,0.0003178,4]
[328020465,1716773551707,-565.33,0.0003178,4]
[328020466,1716773551716,-621.99,0.0003178,4]
[328020467,1716773551725,-248.11,0.0003178,4]
[328020468,1716773551734,-590.75,0.0003178,4]
[328020469,1716773551744,-641.85,0.0003178,4]
[328020470,1716773551754,-849.19,0.0003178,4]
[328020471,1716773551765,-889.12,0.0003178,4]
[328020472,1716773551775,-530.16,0.0003178,4]
[328020473,1716773551787,-536.89,0.0003178,4]
[328020474,1716773551796,-1259.29,0.0003178,4]
[328020475,1716773551806,-500.0,0.0003178,4]
[328020476,1716773551815,-500.0,0.0003178,4]
[328020477,1716773551825,-568.42,0.0003178,4]
[328020478,1716773551834,-776.42,0.0003178,4]
[328020479,1716773551844,-1677.95,0.0003178,4]
[328020480,1716773551857,-646.9,0.0003178,4]
[328020481,1716773551866,-660.3,0.0003178,4]
[328020482,1716773551876,-537.3,0.0003178,4]
[328020483,1716773551886,-500.0,0.0003178,4]
[328020484,1716773551895,-2614.52,0.0003178,4]
[328020485,1716773551905,-579.16,0.0003178,4]
[328020486,1716773551914,-1322.14,0.0003178,4]
[328020487,1716773551924,-969.5,0.0003178,4]
[328020488,1716773551935,-500.0,0.0003178,4]
[328020489,1716773551946,-609.69,0.0003178,4]
[328020490,1716773551955,-500.0,0.0003178,4]
[328020491,1716773551964,-506.32,0.0003178,4]
[328020492,1716773551974,-1140.34,0.0003178,4]
[328020493,1716773551983,-1339.71,0.0003178,4]
[328020494,1716773551993,-859.67,0.0003178,4]
[328020495,1716773552002,-673.21,0.0003178,4]
[328020496,1716773552016,-7686.08,0.0003178,4]
[328020497,1716773552031,-1172.21,0.0003178,4]
[328020498,1716773552046,-1287.8,0.0003178,4]
[328020499,1716773552057,-900.49,0.0003178,4]
[328020500,1716773552072,-1037.45,0.0003178,4]
[328020501,1716773552086,-507.12,0.0003178,4]
[328020502,1716773552101,-735.66,0.0003178,4]
[328020503,1716773552116,-2771.58,0.0003178,4]
[328020504,1716773552130,-500.0,0.0003178,4]
[328020505,1716773552145,-3172.21,0.0003178,4]
[328020506,1716773552158,-1674.57,0.0003178,4]
[328020507,1716773552173,-500.0,0.0003178,4]
[328020508,1716773552187,-2746.18,0.0003178,4]
[328020509,1716773552200,-500.0,0.0003178,4]
[328020510,1716773552211,-527.2,0.0003178,4]
[328020511,1716773552225,-6205.95,0.0003178,4]
[328020512,1716773552239,-892.56,0.0003178,4]
[328020513,1716773552254,-706.36,0.0003178,4]
[328020514,1716773552269,-1206.85,0.0003178,4]
[328020515,1716773552285,-2601.64,0.0003178,4]
[328020516,1716773552298,-627.83,0.0003178,4]
[328020517,1716773552310,-167.28,0.0003178,4]
[328020518,1716773552321,-500.0,0.0003178,4]
[328020519,1716773552336,-500.0,0.0003178,4]
[328020520,1716773552350,-906.32,0.0003178,4]
[328020521,1716773552362,-1301.17,0.0003178,4]
[328020522,1716773552374,-272.66,0.0003178,4]
[328020523,1716773552389,-1348.74,0.0003178,4]
[328020524,1716773552400,-1356.31,0.0003178,4]
[328020525,1716773552411,-690.34,0.0003178,4]
[328020526,1716773552428,-500.0,0.0003178,4]
[328020527,1716773552440,-2143.83,0.0003178,4]
[328020528,1716773552452,-2383.33,0.0003178,4]
[328020529,1716773552465,-500.0,0.0003178,4]
[328020530,1716773552476,-500.0,0.0003178,4]
[328020531,1716773552489,-500.0,0.0003178,4]
[328020532,1716773552503,-581.7,0.0003178,4]
[328020533,1716773552515,-1576.4,0.0003178,4]
[328020534,1716773552528,-786.1,0.0003178,4]
[328020535,1716773552541,-1713.46,0.0003178,4]
[328020536,1716773552552,-1532.05,0.0003178,4]
[328020537,1716773552564,-3324.33,0.0003178,4]
[328020538,1716773552576,-1197.25,0.0003178,4]
[328020539,1716773552587,-908.76,0.0003178,4]
[328020540,1716773552600,-606.23,0.0003178,4]